fUST/lending_fUST_20241230
["ID","MTS","AMOUNT","RATE_DAILY","PERIOD"]
[347192635,1735555849861,-504.66936235,0.00014153,2]
[347192636,1735555849870,-266.03646334,0.00014153,2]
[347192637,1735555849879,-500.0,0.00014153,2]
[347192638,1735555849887,-500.0,0.00014153,2]
[347192639,1735555849896,-500.0,0.00014153,2]
[347192640,1735555849905,-504.02993081,0.00014153,2]
[347192641,1735555849914,-910.41,0.00014153,2]
[347192642,1735555849923,-503.65668775,0.00014154,2]
[347192643,1735555849931,-500.0,0.00014154,2]
[347192644,1735555849940,-313.251351,0.00014154,2]
[347192645,1735555849949,-313.251351,0.00014154,2]
[347192646,1735555849958,-151.0,0.00014154,2]
[347192647,1735555849967,-179.703101,0.00014154,2]
[347192648,1735555849976,-500.0,0.00014154,2]
[347192649,1735555849985,-405.99915458,0.00014154,2]
[347192650,1735555849994,-501.66850296,0.00014154,2]
[347192651,1735555850002,-500.0,0.00014154,2]
[347192652,1735555850012,-501.47646778,0.00014154,2]
[347192653,1735555850020,-501.57767643,0.00014154,2]
[347192654,1735555850030,-500.0,0.00014154,2]
[347192655,1735555850039,-500.0,0.00014154,2]
[347192656,1735555850047,-500.0,0.00014154,2]
[347192657,1735555850056,-1072.84,0.00014154,2]
[347192658,1735555850065,-500.0,0.00014249,2]
[347192659,1735555850074,-208.35277077,0.00014249,2]
[347192660,1735555850083,-500.0,0.00014249,2]
[347192661,1735555850092,-500.0,0.00014249,2]
[347192662,1735555850101,-500.0,0.00014249,2]
[347192663,1735555850110,-519.66,0.00014249,2]
[347192664,1735555850118,-1298.95,0.00014249,2]
[347192665,1735555850127,-500.0,0.00014249,2]
[347192666,1735555850136,-2545.18,0.00014249,2]
[347192667,1735555850145,-500.0,0.00014249,2]
[347192668,1735555850154,-500.0,0.00014249,2]
[347192669,1735555850164,-500.0,0.00014249,2]
[347192670,1735555850173,-500.0,0.00014249,2]
[347192671,1735555850182,-4930.25,0.00014249,2]
[347192672,1735555850191,-561.01924512,0.00014258,2]
[347192673,1735555850200,-502.41149017,0.00014305,2]
[347192674,1735555850209,-500.0,0.00014386,2]
[347192675,1735555850218,-196.394491,0.00014387,2]
[347192676,1735555850228,-196.394491,0.00014387,2]
[347192677,1735555850287,-291.175382,0.00014387,2]
[347192678,1735555850302,-291.175382,0.00014387,2]
[347192679,1735555850311,-504.44556353,0.00014426,2]
[347192680,1735555850320,-500.0,0.00014426,2]
[347192681,1735555850329,-500.0,0.00014426,2]
[347192682,1735555850338,-500.0,0.00014426,2]
[347192683,1735555850347,-500.0,0.00014426,2]
[347192684,1735555850356,-500.0,0.00014426,2]
[347192685,1735555850365,-500.0,0.00014426,2]
[347192686,1735555850374,-500.0,0.00014426,2]
[347192687,1735555850383,-500.0,0.00014426,2]
[347192688,1735555850392,-500.0,0.00014426,2]
[347192689,1735555850401,-6450.16,0.00014426,2]
[347192690,1735555850410,-500.0,0.00014426,2]
[347192691,1735555850419,-500.0,0.00014426,2]
[347192692,1735555850428,-500.0,0.00014426,2]
[347192693,1735555850437,-500.0,0.00014426,2]
[347192694,1735555850446,-500.0,0.00014426,2]
[347192695,1735555850455,-500.0,0.00014426,2]
[347192696,1735555850465,-307.514572,0.00014426,2]
[347192697,1735555850474,-307.514572,0.00014426,2]
[347192698,1735555850483,-501.9451101,0.00014427,2]
[347192699,1735555850492,-347.32728,0.00014427,2]
[347192700,1735555850501,-347.32728,0.00014427,2]
[347192701,1735555850511,-500.0,0.00014427,2]
[347192702,1735555850519,-500.0,0.00014427,2]
[347192703,1735555850529,-372.32740917,0.00014427,2]
[347192704,1735555850538,-499.03749296,0.00014427,2]
[347192705,1735555850547,-500.0,0.00014427,2]
[347192706,1735555850556,-500.0,0.00014427,2]
[347192707,1735555850565,-502.30033796,0.00014427,2]
[347192708,1735555850574,-910.41,0.00014427,2]
[347192709,1735555850584,-503.712558,0.00014428,2]
[347192710,1735555850592,-505.07602194,0.00014428,2]
[347192711,1735555850602,-500.0,0.00014428,2]
[347192712,1735555850611,-500.0,0.00014428,2]
[347192713,1735555850620,-500.0,0.00014428,2]
[347192714,1735555850629,-151.0,0.00014428,2]
[347192715,1735555850638,-372.83588,0.00014428,2]
[347192716,1735555850648,-372.83588,0.00014428,2]
[347192717,1735555850662,-151.0,0.00014428,2]
[347192718,1735555850685,-151.0,0.00014428,2]
[347192719,1735555850701,-1072.84,0.00014428,2]
[347192720,1735555850722,-386.5602662,0.00014523,2]
[347192721,1735555850742,-500.0,0.00014523,2]
[347192722,1735555850759,-553.29776117,0.00014523,2]
[347192723,1735555850787,-225.54927126,0.00014523,2]
[347192724,1735555850801,-519.66,0.00014523,2]
[347192725,1735555850820,-1298.95,0.00014523,2]
[347192726,1735555850839,-500.0,0.00014523,2]
[347192727,1735555850855,-2545.18,0.00014523,2]
[347192728,1735555850870,-500.0,0.00014523,2]
[347192729,1735555850890,-500.0,0.00014523,2]
[347192730,1735555850904,-253.21292253,0.00014523,2]
[347192731,1735555850920,-500.0,0.00014523,2]
[347192732,1735555850933,-4930.25,0.00014523,2]
[347192733,1735555850948,-179.331997,0.00014561,2]
[347192734,1735555850962,-179.331997,0.00014561,2]
[347192735,1735555850977,-151.0,0.00014561,2]
[347192736,1735555850992,-929.392684,0.00014561,2]
[347192737,1735555851006,-929.392684,0.00014561,2]
[347192738,1735555851021,-542.039691,0.00014561,2]
[347192739,1735555851034,-154.196358,0.00014561,2]
[347192740,1735555851048,-542.039691,0.00014561,2]
[347192741,1735555851061,-151.0,0.00014561,2]
[347192742,1735555851076,-478.092112,0.00014561,2]
[347192743,1735555851090,-478.092112,0.00014561,2]
[347192744,1735555851104,-315.997811,0.00014561,2]
[347192745,1735555851119,-315.997811,0.00014561,2]
[347192746,1735555851133,-3010.081874,0.00014561,2]
[347192747,1735555851148,-3010.081874,0.00014561,2]
[347192748,1735555851163,-309.034682,0.00014561,2]
[347192749,1735555851177,-309.034682,0.00014561,2]
[347192750,1735555851192,-765.820995,0.00014561,2]
[347192751,1735555851208,-765.820995,0.00014561,2]
[347192752,1735555851223,-1057.78841,0.00014561,2]
[347192753,1735555851240,-1057.78841,0.00014561,2]
[347192754,1735555851255,-751.488954,0.00014561,2]
[347192755,1735555851265,-751.488954,0.00014561,2]
[347192756,1735555851274,-1063.03678379,0.00014578,2]
[347192757,1735555851284,-561.01924512,0.000146,2]
[347192758,1735555851396,-705.0121696,0.00014658,2]
[347192759,1735555851406,-352.5060848,0.00014658,2]
[347192760,1735555851416,-500.0,0.0001466,2]
[347192761,1735555851425,-151.0,0.00014691,2]
[347192762,1735555851434,-259.656504,0.00014691,2]
[347192763,1735555851444,-201.387258,0.00014691,2]
[347192764,1735555851453,-201.387258,0.00014691,2]
[347192765,1735555851463,-196.394491,0.00014692,2]
[347192766,1735555851473,-196.394491,0.00014692,2]
[347192767,1735555851482,-291.175382,0.00014692,2]
[347192768,1735555851491,-291.175382,0.00014692,2]
[347192769,1735555851501,-151.0,0.00014692,2]
[347192770,1735555851510,-151.0,0.00014692,2]
[347192771,1735555851520,-196.394491,0.00014693,2]
[347192772,1735555851531,-196.394491,0.00014693,2]
[347192773,1735555851541,-291.175382,0.00014693,2]
[347192774,1735555851550,-291.175382,0.00014693,2]
[347192775,1735555851559,-160.0,0.00014699,2]
[347192776,1735555851569,-313.251351,0.000147,2]
[347192777,1735555851579,-313.251351,0.000147,2]
[347192778,1735555851588,-151.0,0.000147,2]
[347192779,1735555851598,-500.0,0.000147,2]
[347192780,1735555851608,-500.0,0.000147,2]
[347192781,1735555851617,-500.0,0.000147,2]
[347192782,1735555851627,-623.20011283,0.000147,2]
[347192783,1735555851636,-500.0,0.000147,2]
[347192784,1735555851646,-500.0,0.000147,2]
[347192785,1735555851656,-500.0,0.000147,2]
[347192786,1735555851667,-500.0,0.000147,2]
[347192787,1735555851677,-6450.16,0.000147,2]
[347192788,1735555851686,-500.0,0.000147,2]
[347192789,1735555851696,-500.0,0.000147,2]
[347192790,1735555851707,-401.92855892,0.000147,2]
[347192791,1735555851718,-500.0,0.000147,2]
[347192792,1735555851727,-214.01587728,0.000147,2]
[347192793,1735555851737,-613.24787981,0.00014701,2]
[347192794,1735555851746,-500.0,0.00014701,2]
[347192795,1735555851755,-500.0,0.00014701,2]
[347192796,1735555851765,-910.41,0.00014701,2]
[347192797,1735555851775,-500.0,0.00014702,2]
[347192798,1735555851784,-500.0,0.00014702,2]
[347192799,1735555851794,-500.0,0.00014702,2]
[347192800,1735555851804,-1072.84,0.00014702,2]
[347192801,1735555851813,-307.0680372,0.00014795,2]
[347192802,1735555851823,-457.4108577,0.00014795,2]
[347192803,1735555851833,-153.5340186,0.00014795,2]
[347192804,1735555851842,-214.3641981,0.00014795,2]
[347192805,1735555851852,-153.5340186,0.00014795,2]
[347192806,1735555851861,-214.3641981,0.00014795,2]
[347192807,1735555851871,-153.5340186,0.00014795,2]
[347192808,1735555851880,-214.3641981,0.00014795,2]
[347192809,1735555851890,-153.2916501,0.00014795,2]
[347192810,1735555851899,-500.0,0.00014797,2]
[347192811,1735555851909,-519.66,0.00014797,2]
[347192812,1735555851919,-1298.95,0.00014797,2]
[347192813,1735555851929,-500.0,0.00014797,2]
[347192814,1735555851939,-2545.18,0.00014797,2]
[347192815,1735555851948,-500.0,0.00014797,2]
[347192816,1735555851957,-500.0,0.00014797,2]
[347192817,1735555851970,-291.35,0.00014797,2]
[347192818,1735555851979,-4930.25,0.00014797,2]
[347192819,1735555851990,-2272.9686606,0.000148,2]
[347192820,1735555852000,-587.048,0.0001482,2]
[347192821,1735555852009,-587.0,0.00014849,2]
[347192822,1735555852019,-171.90349462,0.00014899,2]
[347192823,1735555852029,-151.0,0.000149,2]
[347192824,1735555852038,-182.351012,0.000149,2]
[347192825,1735555852048,-182.351012,0.000149,2]
[347192826,1735555852060,-334.064693,0.000149,2]
[347192827,1735555852070,-334.064693,0.000149,2]
[347192828,1735555852079,-153.572674,0.000149,2]
[347192829,1735555852089,-532.016541,0.000149,2]
[347192830,1735555852099,-532.016541,0.000149,2]
[347192831,1735555852109,-548.079337,0.000149,2]
[347192832,1735555852118,-151.0,0.000149,2]
[347192833,1735555852127,-151.0,0.000149,2]
[347192834,1735555852137,-151.0,0.000149,2]
[347192835,1735555852147,-151.0,0.000149,2]
[347192836,1735555852157,-778.129999,0.000149,2]
[347192837,1735555852166,-347.32728,0.000149,2]
[347192838,1735555852176,-347.32728,0.000149,2]
[347192839,1735555852186,-347.32728,0.000149,2]
[347192840,1735555852195,-347.32728,0.000149,2]
[347192841,1735555852206,-347.32728,0.000149,2]
[347192842,1735555852216,-347.32728,0.000149,2]
[347192843,1735555852226,-179.331997,0.000149,2]
[347192844,1735555852235,-179.331997,0.000149,2]
[347192845,1735555852244,-179.331997,0.000149,2]
[347192846,1735555852253,-179.331997,0.000149,2]
[347192847,1735555852263,-179.331997,0.000149,2]
[347192848,1735555852272,-179.331997,0.000149,2]
[347192849,1735555852282,-151.0,0.000149,2]
[347192850,1735555852291,-151.0,0.000149,2]
[347192851,1735555852301,-151.0,0.000149,2]
[347192852,1735555852310,-151.0,0.000149,2]
[347192853,1735555852320,-151.0,0.000149,2]
[347192854,1735555852329,-151.0,0.000149,2]
[347192855,1735555852339,-929.392684,0.000149,2]
[347192856,1735555852348,-929.392684,0.000149,2]
[347192857,1735555852358,-929.392684,0.000149,2]
[347192858,1735555852368,-929.392684,0.000149,2]
[347192859,1735555852378,-929.392684,0.000149,2]
[347192860,1735555852387,-929.392684,0.000149,2]
[347192861,1735555852397,-542.039691,0.000149,2]
[347192862,1735555852407,-542.039691,0.000149,2]
[347192863,1735555852417,-542.039691,0.000149,2]
[347192864,1735555852426,-542.039691,0.000149,2]
[347192865,1735555852435,-542.039691,0.000149,2]
[347192866,1735555852445,-542.039691,0.000149,2]
[347192867,1735555852455,-151.0,0.000149,2]
[347192868,1735555852465,-151.0,0.000149,2]
[347192869,1735555852475,-151.0,0.000149,2]
[347192870,1735555852484,-201.387258,0.000149,2]
[347192871,1735555852493,-201.387258,0.000149,2]
[347192872,1735555852503,-201.387258,0.000149,2]
[347192873,1735555852512,-201.387258,0.000149,2]
[347192874,1735555852522,-201.387258,0.000149,2]
[347192875,1735555852531,-201.387258,0.000149,2]
[347192876,1735555852541,-151.0,0.000149,2]
[347192877,1735555852550,-151.0,0.000149,2]
[347192878,1735555852560,-151.0,0.000149,2]
[347192879,1735555852569,-372.83588,0.000149,2]
[347192880,1735555852579,-372.83588,0.000149,2]
[347192881,1735555852588,-372.83588,0.000149,2]
[347192882,1735555852598,-372.83588,0.000149,2]
[347192883,1735555852607,-372.83588,0.000149,2]
[347192884,1735555852616,-372.83588,0.000149,2]
[347192885,1735555852626,-315.997811,0.000149,2]
[347192886,1735555852635,-315.997811,0.000149,2]
[347192887,1735555852645,-151.0,0.000149,2]
[347192888,1735555852655,-151.0,0.000149,2]
[347192889,1735555852667,-151.0,0.000149,2]
[347192890,1735555852676,-151.0,0.000149,2]
[347192891,1735555852686,-151.0,0.000149,2]
[347192892,1735555852695,-151.0,0.000149,2]
[347192893,1735555852706,-3010.081874,0.000149,2]
[347192894,1735555852715,-309.034682,0.000149,2]
[347192895,1735555852725,-3010.081874,0.000149,2]
[347192896,1735555852736,-309.034682,0.000149,2]
[347192897,1735555852746,-765.820995,0.000149,2]
[347192898,1735555852756,-765.820995,0.000149,2]
[347192899,1735555852766,-1057.78841,0.000149,2]
[347192900,1735555852775,-1057.78841,0.000149,2]
[347192901,1735555852785,-751.488954,0.000149,2]
[347192902,1735555852795,-751.488954,0.000149,2]
[347192903,1735555852805,-751.488954,0.000149,2]
[347192904,1735555852814,-751.488954,0.000149,2]
[347192905,1735555852824,-151.0,0.00014955,2]
[347192906,1735555852834,-151.342416,0.00014956,2]
[347192907,1735555852844,-182.351012,0.00014956,2]
[347192908,1735555852854,-182.351012,0.00014956,2]
[347192909,1735555852864,-196.394491,0.00014966,2]
[347192910,1735555852936,-196.394491,0.00014966,2]
[347192911,1735555852946,-291.175382,0.00014966,2]
[347192912,1735555852956,-291.175382,0.00014966,2]
[347192913,1735555852967,-174.283843,0.00014966,2]
[347192914,1735555852977,-174.283843,0.00014966,2]
[347192915,1735555852988,-151.0,0.00014966,2]
[347192916,1735555852998,-235.519799,0.00014966,2]
[347192917,1735555853008,-334.064693,0.00014967,2]
[347192918,1735555853018,-334.064693,0.00014967,2]
[347192919,1735555853029,-151.0,0.00014967,2]
[347192920,1735555853039,-243.727111,0.00014967,2]
[347192921,1735555853049,-159.55777,0.00014967,2]
[347192922,1735555853059,-151.0,0.00014967,2]
[347192923,1735555853069,-151.0,0.00014967,2]
[347192924,1735555853079,-174.685253,0.00014967,2]
[347192925,1735555853089,-174.685253,0.00014967,2]
[347192926,1735555853098,-307.514572,0.00014967,2]
[347192927,1735555853108,-307.514572,0.00014967,2]
[347192928,1735555853118,-500.0,0.00014974,2]
[347192929,1735555853129,-500.0,0.00014974,2]
[347192930,1735555853138,-500.0,0.00014974,2]
[347192931,1735555853148,-6450.16,0.00014974,2]
[347192932,1735555853159,-514.27,0.00014974,2]
[347192933,1735555853168,-572.07,0.00014974,2]
[347192934,1735555853178,-751.488954,0.00014974,2]
[347192935,1735555853187,-751.488954,0.00014974,2]
[347192936,1735555853198,-292.15350081,0.00014975,2]
[347192937,1735555853208,-500.0,0.00014975,2]
[347192938,1735555853219,-910.41,0.00014975,2]
[347192939,1735555853230,-500.0,0.00014976,2]
[347192940,1735555853240,-500.0,0.00014976,2]
[347192941,1735555853250,-500.0,0.00014976,2]
[347192942,1735555853260,-1072.84,0.00014976,2]
[347192943,1735555853270,-1063.03678379,0.00015048,2]
[347192944,1735555853280,-153.0,0.00015068,2]
[347192945,1735555853289,-153.0,0.00015068,2]
[347192946,1735555853299,-153.0,0.00015068,2]
[347192947,1735555853309,-500.0,0.00015071,2]
[347192948,1735555853320,-519.66,0.00015071,2]
[347192949,1735555853329,-1298.95,0.00015071,2]
[347192950,1735555853339,-500.0,0.00015071,2]
[347192951,1735555853349,-2545.18,0.00015071,2]
[347192952,1735555853359,-316.47,0.00015071,2]
[347192953,1735555853369,-500.0,0.00015071,2]
[347192954,1735555853379,-4930.25,0.00015071,2]
[347192955,1735555853389,-532.016541,0.00015173,2]
[347192956,1735555853398,-532.016541,0.00015173,2]
[347192957,1735555853408,-151.0,0.00015204,2]
[347192958,1735555853418,-183.938583,0.00015204,2]
[347192959,1735555853427,-542.039691,0.00015204,2]
[347192960,1735555853437,-542.039691,0.00015204,2]
[347192961,1735555853447,-151.0,0.00015204,2]
[347192962,1735555853457,-201.387258,0.00015204,2]
[347192963,1735555853469,-201.387258,0.00015204,2]
[347192964,1735555853479,-196.394491,0.0001524,2]
[347192965,1735555853488,-196.394491,0.0001524,2]
[347192966,1735555853497,-291.175382,0.0001524,2]
[347192967,1735555853507,-291.175382,0.0001524,2]
[347192968,1735555853516,-500.0,0.00015248,2]
[347192969,1735555853526,-6450.16,0.00015248,2]
[347192970,1735555853536,-548.079337,0.00015249,2]
[347192971,1735555853545,-778.129999,0.00015249,2]
[347192972,1735555853555,-347.32728,0.00015249,2]
[347192973,1735555853564,-347.32728,0.00015249,2]
[347192974,1735555853574,-313.251351,0.00015249,2]
[347192975,1735555853583,-179.331997,0.00015249,2]
[347192976,1735555853594,-313.251351,0.00015249,2]
[347192977,1735555853603,-179.331997,0.00015249,2]
[347192978,1735555853612,-151.0,0.00015249,2]
[347192979,1735555853622,-929.392684,0.00015249,2]
[347192980,1735555853632,-929.392684,0.00015249,2]
[347192981,1735555853642,-478.092112,0.00015249,2]
[347192982,1735555853651,-478.092112,0.00015249,2]
[347192983,1735555853668,-151.0,0.00015249,2]
[347192984,1735555853677,-372.83588,0.00015249,2]
[347192985,1735555853687,-372.83588,0.00015249,2]
[347192986,1735555853696,-151.0,0.00015249,2]
[347192987,1735555853707,-151.0,0.00015249,2]
[347192988,1735555853716,-500.0,0.00015249,2]
[347192989,1735555853726,-910.41,0.00015249,2]
[347192990,1735555853736,-182.351012,0.0001525,2]
[347192991,1735555853745,-182.351012,0.0001525,2]
[347192992,1735555853754,-500.0,0.0001525,2]
[347192993,1735555853764,-500.0,0.0001525,2]
[347192994,1735555853773,-188.61829611,0.0001525,2]
[347192995,1735555853783,-1072.84,0.0001525,2]
[347192996,1735555853792,-151.0,0.00015286,2]
[347192997,1735555853802,-151.0,0.00015286,2]
[347192998,1735555853811,-196.394491,0.000153,2]
[347192999,1735555853821,-196.394491,0.000153,2]
[347193000,1735555853831,-291.175382,0.000153,2]
[347193001,1735555853840,-291.175382,0.000153,2]
[347193002,1735555853849,-266.45,0.00015345,2]
[347193003,1735555853859,-519.66,0.00015345,2]
[347193004,1735555853868,-1298.95,0.00015345,2]
[347193005,1735555853878,-500.0,0.00015345,2]
[347193006,1735555853887,-2545.18,0.00015345,2]
[347193007,1735555853897,-500.0,0.00015345,2]
[347193008,1735555853907,-4930.25,0.00015345,2]
[347193009,1735555853916,-581.284,0.00015374,2]
[347193010,1735555853926,-151.0,0.00015385,2]
[347193011,1735555853936,-151.0,0.00015387,2]
[347193012,1735555853946,-176.479463,0.00015387,2]
[347193013,1735555853955,-465.167767,0.00015443,2]
[347193014,1735555853966,-751.488954,0.00015494,2]
[347193015,1735555853976,-751.488954,0.00015494,2]
[347193016,1735555853986,-309.2590886,0.00015507,2]
[347193017,1735555853996,-235.519799,0.00015515,2]
[347193018,1735555854005,-151.0,0.00015515,2]
[347193019,1735555854016,-151.0,0.00015515,2]
[347193020,1735555854026,-196.394491,0.00015517,2]
[347193021,1735555854036,-196.394491,0.00015517,2]
[347193022,1735555854045,-291.175382,0.00015517,2]
[347193023,1735555854055,-291.175382,0.00015517,2]
[347193024,1735555854064,-174.283843,0.00015517,2]
[347193025,1735555854074,-174.283843,0.00015517,2]
[347193026,1735555854084,-334.064693,0.00015517,2]
[347193027,1735555854094,-334.064693,0.00015517,2]
[347193028,1735555854104,-151.0,0.00015517,2]
[347193029,1735555854114,-151.0,0.00015517,2]
[347193030,1735555854124,-1063.03678379,0.00015517,2]
[347193031,1735555854133,-500.0,0.00015522,2]
[347193032,1735555854142,-6450.16,0.00015522,2]
[347193033,1735555854152,-307.514572,0.00015522,2]
[347193034,1735555854161,-307.514572,0.00015522,2]
[347193035,1735555854170,-548.079337,0.00015523,2]
[347193036,1735555854179,-336.51,0.00015523,2]
[347193037,1735555854189,-910.41,0.00015523,2]
[347193038,1735555854199,-151.0,0.00015524,2]
[347193039,1735555854208,-151.0,0.00015524,2]
[347193040,1735555854218,-174.685253,0.00015524,2]
[347193041,1735555854227,-174.685253,0.00015524,2]
[347193042,1735555854236,-500.0,0.00015524,2]
[347193043,1735555854245,-500.0,0.00015524,2]
[347193044,1735555854254,-315.997811,0.00015524,2]
[347193045,1735555854263,-315.997811,0.00015524,2]
[347193046,1735555854272,-765.820995,0.00015524,2]
[347193047,1735555854282,-765.820995,0.00015524,2]
[347193048,1735555854291,-1057.78841,0.00015524,2]
[347193049,1735555854300,-1057.78841,0.00015524,2]
[347193050,1735555854373,-1072.84,0.00015524,2]
[347193051,1735555854383,-2272.9686606,0.00015542,2]
[347193052,1735555854392,-532.016541,0.0001559,2]
[347193053,1735555854402,-532.016541,0.0001559,2]
[347193054,1735555854412,-151.0,0.00015598,2]
[347193055,1735555854421,-542.039691,0.00015598,2]
[347193056,1735555854431,-542.039691,0.00015598,2]
[347193057,1735555854441,-151.0,0.00015598,2]
[347193058,1735555854450,-201.387258,0.00015598,2]
[347193059,1735555854459,-201.387258,0.00015598,2]
[347193060,1735555854469,-151.0,0.00015599,2]
[347193061,1735555854478,-705.0121696,0.00015616,2]
[347193062,1735555854487,-581.3113188,0.00015616,2]
[347193063,1735555854497,-352.5060848,0.00015616,2]
[347193064,1735555854506,-331523.69216275,0.00015617,2]
[347193065,1735555854597,-281.138,0.00015617,2]
[347193066,1735555854609,-3239.33979648,0.00015617,2]
[347193067,1735555854677,-500.0,0.00012331,2]
[347193068,1735555854687,-500.0,0.00013605,2]
[347193069,1735555854696,-500.0,0.00013879,2]
[347193070,1735555854706,-8400.32632136,0.00015617,2]
[347193071,1735555854719,-3276.69999998,0.00015617,2]
[347193072,1735555854730,-3302.47134826,0.00015617,2]
[347193073,1735555854801,-529.25303001,0.00012331,2]
[347193074,1735555854811,-673.48033732,0.00015617,2]
[347193075,1735555855301,-1150.71,0.00012208,2]
[347193076,1735555855311,-522.53,0.00012331,2]
[347193077,1735555855320,-500.0,0.00012331,2]
[347193078,1735555855329,-501.39261914,0.00012331,2]
[347193079,1735555855340,-153.0,0.00015068,2]
[347193080,1735555855349,-27246.49397217,0.00015617,2]
[347193081,1735555855361,-24995.999656,0.00015617,2]
[347193082,1735555855372,-13832.21248,0.00015617,2]
[347193083,1735555855388,-371.07651458,0.00015617,2]
[347193084,1735555855465,1319.867008,0.00025,120]
[347193088,1735556668351,500.0,0.00021538,120]
[347193167,1735556994509,-300.0,0.00012328,2]
[347193168,1735556994538,-649.83605172,0.00012329,2]
[347193169,1735556994569,-500.0,0.00012329,2]
[347193170,1735556994599,-139.66339871,0.00012329,2]
[347193171,1735556994632,-360.33660129,0.00012329,2]
[347193172,1735556994663,-631.97573987,0.00012329,2]
[347193173,1735556994696,-150.68659307,0.00012329,2]
[347193175,1735557026382,215.030626,0.0002411,120]
[347193189,1735557035696,-448.81539612,0.00012231,2]
[347193190,1735557035706,-300.0,0.00012328,2]
[347193191,1735557035715,-349.31340693,0.00012329,2]
[347193192,1735557035725,-500.0,0.00012329,2]
[347193193,1735557035735,-500.0,0.00012329,2]
[347193194,1735557035746,-500.0,0.00012329,2]
[347193195,1735557035756,-500.0,0.00012329,2]
[347193196,1735557035765,-277.3640562,0.00012329,2]
[347193197,1735557035774,-500.0,0.00012329,2]
[347193198,1735557035784,-500.0,0.00012329,2]
[347193199,1735557035794,-248.84198008,0.00012329,2]
[347193200,1735557035804,-500.0,0.00012329,2]
[347193201,1735557035814,-163.91997423,0.00012329,2]
[347193202,1735557035823,-502.25290807,0.00012329,2]
[347193203,1735557035832,-263.31835517,0.00012329,2]
[347193204,1735557035842,-500.0,0.00012329,2]
[347193205,1735557035851,-544.12943854,0.00012329,2]
[347193206,1735557035861,-437.69570712,0.00012329,2]
[347193207,1735557035871,-500.0,0.00012329,2]
[347193208,1735557035881,-612.57,0.00012329,2]
[347193209,1735557035890,-500.0,0.00012329,2]
[347193210,1735557035900,-500.0,0.00012329,2]
[347193211,1735557035909,-500.0,0.00012329,2]
[347193212,1735557035918,-500.0,0.00012329,2]
[347193213,1735557035928,-504.07874889,0.00012329,2]
[347193214,1735557035938,-345.00390519,0.0001233,2]
[347193215,1735557035947,-500.0,0.0001233,2]
[347193216,1735557035956,-500.0,0.0001233,2]
[347193217,1735557035965,-454.18677326,0.0001233,2]
[347193218,1735557035974,-500.0,0.0001233,2]
[347193219,1735557035983,-504.33977082,0.0001233,2]
[347193220,1735557035994,-500.0,0.0001233,2]
[347193221,1735557036003,-500.0,0.0001233,2]
[347193222,1735557036013,-500.0,0.0001233,2]
[347193223,1735557036022,-500.42203127,0.0001233,2]
[347193224,1735557036031,-500.0,0.0001233,2]
[347193225,1735557036041,-500.71698057,0.0001233,2]
[347193226,1735557036050,-500.0,0.0001233,2]
[347193227,1735557036059,-500.55749107,0.0001233,2]
[347193228,1735557036069,-500.0,0.0001233,2]
[347193229,1735557036078,-501.08374099,0.0001233,2]